bitfinex/quotes_ETHUSD_20250115
["timestamp","ask_amount","ask_price","bid_price","bid_amount"]
[1736953914388,2.99229,3342.0,3341.2,0.8135]
[1736953914781,2.99229,3342.0,3341.3,0.03285517]
[1736953914985,2.99229,3342.0,3341.3,35.03285517]
[1736953915185,2.99211,3342.2,3341.3,35.03285517]
[1736953915403,3.81793687,3342.5,3341.3,35.03285517]
[1736953915728,2.99205,3342.2,3341.3,35.03285517]
[1736953916369,0.55,3342.4,3341.3,35.03285517]
[1736953916664,2.99238,3341.9,3341.3,35.03285517]
[1736953916961,2.99204,3342.2,3341.4,0.238]
[1736953917163,2.79405,3341.4,3341.3,0.03285517]
[1736953917340,2.30855,3341.4,3341.3,0.238]
[1736953918026,2.30855,3341.4,3341.3,0.27090588]
[1736953918825,3.0,3341.9,3341.3,0.03290588]
[1736953919028,5.99235,3341.9,3341.4,0.238]
[1736953919373,2.99266,3341.5,3341.4,0.238]
[1736953920865,2.99196,3342.3,3341.4,0.238]
[1736953921072,0.7641,3342.6,3341.4,0.238]
[1736953921073,2.99217,3342.1,3341.5,0.8132]
[1736953921363,3.81793687,3342.8,3341.6,0.03584574]
[1736953921574,3.0,3342.7,3341.6,0.03584574]
[1736953921714,2.99218,3342.1,3341.7,35.0]
[1736953921910,3.0,3342.7,3341.8,0.03581136]
[1736953922111,5.9923,3341.9,3341.8,0.03581136]
[1736953922397,5.9923,3341.9,3339.9,8.87]
[1736953922398,3.55,3341.8,3339.9,11.86409]
[1736953922662,2.99304,3341.1,3340.1,36.0512]
[1736953922876,2.99287,3341.3,3340.3,2.99371]
[1736953923015,2.99255,3341.7,3340.2,0.8132]
[1736953923365,2.99327,3340.9,3340.2,0.8132]
[1736953923511,2.99327,3340.9,3340.3,35.238]
[1736953923971,3.81793687,3341.5,3340.3,35.238]
[1736953924135,2.9934,3340.7,3340.3,35.238]
[1736953924481,4.35032086,3341.7,3340.4,0.238]
[1736953924482,2.99329,3340.8,3340.4,0.238]
[1736953924611,2.99356,3340.5,3340.4,0.238]
[1736953924821,5.99356,3340.5,3340.4,0.238]
[1736953925329,3.81793687,3341.0,3340.4,0.238]
[1736953925511,2.99342,3340.7,3340.4,0.238]
[1736953925711,5.99319,3341.0,3340.4,0.238]
[1736953925958,3.0,3341.0,3340.5,0.7823]
[1736953926159,2.99304,3341.1,3340.5,0.7823]
[1736953926363,3.81793687,3341.5,3340.5,0.7823]
[1736953926562,0.59730383,3341.7,3340.6,0.238]
[1736953926768,2.99273,3341.5,3340.6,0.238]
[1736953926917,0.59730383,3341.7,3340.6,0.238]
[1736953927114,2.99287,3341.3,3340.6,0.238]
[1736953927319,2.99287,3341.3,3340.7,35.0]
[1736953927742,0.55,3341.4,3340.7,35.0]
[1736953927985,2.99314,3341.0,3340.8,0.238]
[1736953928178,0.59730383,3341.7,3340.8,0.238]
[1736953928466,2.99215,3342.1,3341.1,2.99299]
[1736953928635,2.99224,3342.0,3340.9,3.77543]
[1736953928853,2.99224,3342.0,3341.0,2.99311]
[1736953929062,2.99231,3341.9,3341.0,2.99311]
[1736953929268,2.99225,3342.0,3340.9,0.7823]
[1736953929854,2.99232,3341.9,3341.0,2.9931]
[1736953930055,3.58861425,3342.2,3340.9,0.7823]
[1736953930253,2.99243,3341.8,3340.9,0.7823]
[1736953930467,3.58069425,3342.2,3340.9,0.7823]
[1736953930468,2.99248,3341.7,3340.9,0.7823]
[1736953930870,2.99229,3342.0,3340.9,0.7823]
[1736953931080,2.99167,3342.7,3341.4,2.99272]
[1736953931289,2.99194,3342.4,3341.5,0.7823]
[1736953931450,0.814,3343.0,3341.6,0.0299231]
[1736953931648,2.99141,3342.9,3341.5,0.7823]
[1736953931879,0.814,3343.0,3341.6,0.238]
[1736953932049,3.55,3342.5,3341.7,0.238]
[1736953932249,2.9923,3341.9,3341.8,0.238]
[1736953933049,2.9924,3341.8,3341.5,0.7823]
[1736953933275,2.9924,3341.8,3341.6,0.238]
[1736953933478,2.99187,3342.4,3341.6,0.238]
[1736953935266,2.99142,3342.9,3342.1,35.7823]
[1736953935451,3.24085,3343.1,3342.1,38.77441]
[1736953935650,0.2496,3343.1,3342.1,35.7823]
[1736953936190,0.2496,3343.1,3342.2,2.992]
[1736953936686,0.2496,3343.1,3342.4,2.99183]
[1736953936894,0.2496,3343.1,3342.5,0.7823]
[1736953937504,0.2496,3343.1,3342.7,2.99157]
[1736953937798,0.2496,3343.1,3342.8,0.238]
[1736953937980,0.2496,3343.1,3343.0,0.7823]
[1736953938483,0.2496,3343.1,3343.0,3.77362]
[1736953938800,0.2496,3343.1,3343.0,2.99132]
[1736953939177,0.2496,3343.1,3343.0,37.99132]
[1736953941618,0.2496,3343.1,3343.0,38.77362]
[1736953942111,0.2496,3343.1,3343.0,0.7823]
[1736953942311,0.2496,3343.1,3343.0,1.0193]
[1736953942552,0.2496,3343.1,3343.0,4.01062]
[1736953943016,0.2496,3343.1,3343.0,0.7823]
[1736953943171,0.2496,3343.1,3343.0,1.0193]
[1736953944716,0.2496,3343.1,3342.6,0.7823]
[1736953944917,0.2496,3343.1,3343.0,0.237]
[1736953945482,0.2496,3343.1,3342.8,0.237]
[1736953945483,2.99141,3342.9,3342.8,0.237]
[1736953945680,2.99141,3342.9,3342.7,0.237]
[1736953946529,0.814,3343.0,3342.7,0.237]
[1736953946708,2.99134,3343.0,3342.7,0.237]
[1736953947050,0.2496,3343.1,3342.7,0.237]
[1736953947229,2.9915,3342.8,3342.7,0.237]
[1736953947393,0.2496,3343.1,3342.7,0.237]
[1736953947925,2.99145,3342.9,3342.7,0.237]
[1736953948697,0.55,3343.0,3342.8,0.237]
[1736953949034,0.55,3342.9,3341.7,0.7823]
[1736953949189,2.99207,3342.2,3342.1,0.237]
[1736953949892,0.55,3342.4,3341.8,0.237]
[1736953950094,2.99208,3342.2,3341.8,0.237]
[1736953950496,2.99189,3342.4,3341.5,37.156]
[1736953950795,2.99171,3342.6,3341.6,3.2295]
[1736953951114,2.99216,3342.1,3341.6,0.237]
[1736953951298,2.99224,3342.0,3341.6,0.237]
[1736953951690,2.99191,3342.4,3341.6,0.237]
[1736953951691,2.99208,3342.2,3341.6,0.237]
[1736953952434,3.51112973,3342.4,3341.6,0.237]
[1736953952600,3.51112973,3342.8,3341.9,0.7823]
[1736953952805,2.99161,3342.7,3341.9,0.7823]
[1736953953132,3.51112973,3342.8,3341.9,0.7823]
[1736953953305,3.24087,3343.1,3342.2,2.99204]
[1736953953630,0.2496,3343.1,3342.6,2.99165]
[1736953953850,0.2496,3343.1,3342.3,0.7823]
[1736953953851,0.2496,3343.1,3342.8,2.99147]
[1736953954020,0.2496,3343.1,3343.0,3.77362]
[1736953954207,0.2496,3343.1,3343.0,38.77362]
[1736953957347,0.2496,3343.1,3343.0,0.237]
[1736953957649,0.2496,3343.1,3343.0,3.22832]
[1736953957833,0.2496,3343.1,3343.0,38.22832]
[1736953958033,0.2496,3343.1,3343.0,38.97982]
[1736953959643,0.2496,3343.1,3343.0,40.97982]
[1736953959862,1e-05,3343.1,3343.0,40.97982]
[1736953960012,1e-05,3343.1,3343.0,46.35982]
[1736953961246,1e-05,3343.1,3343.0,49.09122081]
[1736953961660,1e-05,3343.1,3343.0,47.09122081]
[1736953962153,1e-05,3343.1,3343.0,49.56426196]
[1736953962326,1e-05,3343.1,3343.0,56.07539169]
[1736953962525,0.8001,3345.2,3343.6,2.0]
[1736953962756,0.8001,3345.2,3343.2,3.25]
[1736953962757,0.61071809,3345.9,3344.8,3.74117]
[1736953963063,0.8001,3346.0,3344.9,0.237]
[1736953963217,3.78875,3346.0,3345.0,35.0]
[1736953963416,4.0,3345.1,3345.0,35.0]
[1736953963620,4.0,3345.1,3345.0,37.98953]
[1736953963927,4.0,3345.1,3345.0,35.0]
[1736953965462,4.0,3345.1,3344.9,0.237]
[1736953965621,4.0,3345.1,3344.8,0.7515]
[1736953965822,4.0,3345.1,3344.9,0.237]
[1736953966431,4.0,3345.0,3344.9,0.237]
[1736953967570,4.0,3345.0,3344.9,3.22662]
[1736953968055,4.0,3345.0,3344.9,0.237]
[1736953968418,4.0,3345.0,3344.4,0.7515]
[1736953968622,4.0,3345.0,3344.5,0.237]
[1736953969042,4.0,3345.0,3344.1,2.73140081]
[1736953969251,4.48001,3345.0,3344.1,2.73140081]
[1736953969565,2.99025,3344.2,3344.1,2.73140081]
[1736953969771,2.99087,3343.5,3343.4,0.237]
[1736953969952,3.81217,3343.5,3343.4,0.237]
[1736953970267,5.99105,3343.3,3342.0,5.38]
[1736953970468,3.0,3342.8,3342.1,0.237]
[1736953970635,0.8213,3342.5,3342.1,0.237]
[1736953970843,2.99204,3342.2,3342.1,0.237]
[1736953971536,2.99222,3342.0,3341.0,0.8321]
[1736953971741,2.99246,3341.8,3341.1,0.237]
[1736953972064,4.0,3341.9,3341.1,0.237]
[1736953972266,0.55,3341.6,3340.9,0.71058985]
[1736953972479,2.99307,3341.1,3340.9,0.71058985]
[1736953972783,2.99307,3341.1,3340.9,0.47358985]
[1736953973081,4.0,3341.0,3340.8,0.237]
[1736953973254,2.99338,3340.7,3340.4,0.237]
[1736953973639,3.0,3340.9,3340.4,0.237]
[1736953974039,4.0,3340.6,3340.4,0.237]
[1736953976705,4.0,3340.6,3339.8,35.0]
[1736953976859,4.0,3340.6,3340.5,0.237]
[1736953977569,2.99368,3340.4,3339.8,35.0]
[1736953977769,4.0,3340.2,3339.5,0.46888769]
[1736953977970,4.0,3340.2,3339.6,0.237]
[1736953978173,2.99431,3339.7,3338.9,0.8321]
[1736953978401,2.99431,3339.7,3339.0,0.237]
[1736953978546,0.8213,3339.5,3339.0,0.46945167]
[1736953978893,2.99481,3339.1,3338.8,0.237]
[1736953979086,4.0,3339.2,3338.8,0.237]
[1736953979983,0.8213,3340.1,3338.8,0.237]
[1736953980205,0.8213,3340.1,3339.0,0.8321]
[1736953980413,0.8213,3340.1,3339.1,2.99481]
[1736953980573,0.8213,3340.1,3339.0,0.8321]
[1736953980768,0.8213,3340.1,3338.8,0.237]
[1736953980967,0.8213,3340.5,3338.8,0.237]
[1736953981173,2.99367,3340.4,3339.0,2.9949]
[1736953981508,3.81488,3340.5,3338.8,3.23204]
[1736953981811,1.14561019,3340.5,3339.0,2.99482]
[1736953982006,1.14561019,3340.5,3338.9,0.02994344]
[1736953982178,0.8213,3340.5,3339.3,2.99458]
[1736953982503,0.8213,3340.5,3339.0,8.87]
[1736953982678,1.40871173,3341.0,3339.5,14.25]
[1736953982879,0.8213,3341.4,3340.0,0.8321]
[1736953983109,0.8213,3341.4,3340.1,0.26693183]
[1736953983270,0.8213,3341.4,3340.5,2.99354]
[1736953983590,0.8213,3341.4,3340.4,2.99363]
[1736953983992,0.8213,3341.4,3340.0,0.97836834]
[1736953984307,0.8213,3341.4,3340.1,0.237]
[1736953984491,0.8213,3341.4,3340.0,3.82603]
[1736953984699,0.8213,3341.4,3340.3,2.99365]
[1736953985314,0.8213,3341.4,3340.4,2.99361]
[1736953985497,0.42177927,3342.7,3340.4,2.99361]
[1736953985498,0.8017,3342.4,3340.5,8.89993047]
[1736953985811,0.8017,3342.4,3341.0,2.99311]
[1736953985973,0.8017,3342.4,3341.1,8.87]
[1736953986174,0.8017,3342.4,3341.8,2.99239]
[1736953986510,0.8017,3342.9,3341.7,8.87]
[1736953986812,0.8017,3342.9,3341.9,2.99223]
[1736953987114,1.24118916,3342.9,3341.7,8.87]
[1736953987331,1.24118916,3342.9,3341.9,0.237]
[1736953987474,2.99158,3342.8,3342.0,0.237]
[1736953987691,0.8017,3342.9,3342.1,0.237]
[1736953987887,0.8017,3343.4,3342.2,0.237]
[1736953988222,2.99115,3343.2,3342.3,0.237]
[1736953988443,1.180958,3343.4,3342.3,0.237]
[1736953988591,3.8017,3343.4,3342.5,2.99171]
[1736953988787,0.8017,3343.4,3342.7,8.87]
[1736953988991,6.80597276,3344.5,3342.8,2.99142]
[1736953988992,0.8017,3343.8,3342.8,2.99142]
[1736953989190,0.8017,3343.8,3342.5,2.99171]
[1736953989431,2.99069,3343.7,3342.4,8.87]
[1736953989724,1.35989028,3343.7,3342.4,8.87]
[1736953989923,2.99072,3343.7,3342.4,11.86186]
[1736953990230,0.8017,3343.8,3342.4,8.87]
[1736953990658,3.0,3343.6,3342.4,8.87]
[1736953990792,3.0,3343.7,3342.4,8.87]
[1736953990995,2.991,3343.4,3342.4,8.87]
[1736953991349,2.99129,3343.1,3342.5,0.237]
[1736953991926,0.8017,3343.2,3342.5,0.237]
[1736953992889,0.8017,3343.2,3342.0,5.38]
[1736953993091,0.8017,3343.2,3342.1,0.237]
[1736953993518,0.8017,3343.2,3342.3,2.99195]
[1736953993719,0.8017,3343.2,3342.1,0.237]
[1736953994202,6.80723276,3343.0,3342.1,0.237]
[1736953994402,2.99158,3342.8,3342.2,0.237]
[1736953994635,2.99164,3342.7,3342.2,0.237]
[1736953994926,3.0,3342.9,3342.2,0.237]
[1736953994927,0.8017,3342.5,3342.2,0.237]
[1736953996043,0.8017,3342.9,3342.3,8.87]
[1736953996405,0.8017,3342.9,3342.4,0.237]
[1736953996637,1.26346128,3342.9,3341.5,2.156]
[1736953996846,2.9915,3342.8,3341.6,0.237]
[1736953997143,2.99177,3342.5,3341.6,0.237]
[1736953997646,3.0,3342.8,3341.6,0.237]
[1736953997934,1.26346128,3342.9,3341.7,0.237]
[1736953997935,0.8017,3342.4,3341.7,0.237]
[1736953998139,1.91764228,3342.4,3341.7,0.237]
[1736953998303,0.8017,3342.4,3341.7,0.237]
[1736953998647,2.99116,3343.2,3341.8,8.87]
[1736953998958,2.99131,3343.1,3341.9,2.9923]
[1736953999248,0.8017,3343.4,3341.9,2.9923]
[1736953999249,2.99133,3343.0,3341.9,2.9923]
[1736953999545,0.8017,3343.4,3341.8,8.87]
[1736953999546,3.8017,3343.4,3341.8,8.87]
[1736953999749,3.8017,3343.4,3341.7,0.237]
[1736953999750,0.5892043,3343.2,3342.4,2.99184]
[1736954000057,0.8017,3343.4,3342.2,0.7783]
[1736954000360,0.8017,3343.4,3342.5,2.99175]
[1736954000647,0.8017,3343.4,3342.0,8.87]
[1736954000648,6.79272,3343.4,3342.0,8.87]
[1736954000800,3.8017,3343.4,3342.0,8.87]
[1736954001004,2.99141,3342.9,3342.0,8.87]
[1736954001343,3.0,3343.0,3342.0,8.87]
[1736954002145,0.76176128,3343.3,3342.0,8.87]
[1736954002445,2.99141,3343.0,3342.0,8.87]
[1736954002877,3.81591276,3343.0,3342.0,8.87]
[1736954003184,3.81591276,3343.0,3341.9,5.38]
[1736954003185,3.0,3342.8,3341.9,5.617]
[1736954003341,2.99178,3342.5,3341.9,0.237]
[1736954003541,7.47976428,3342.9,3341.5,2.156]
[1736954003542,3.55,3342.8,3341.5,2.156]
[1736954003874,3.0,3342.2,3341.6,0.237]
[1736954004493,0.55,3342.6,3341.6,0.237]
[1736954004636,0.355,3342.5,3341.6,0.237]
[1736954004837,3.5417,3342.6,3341.6,0.237]
[1736954004838,3.7526,3342.9,3341.6,0.237]
[1736954005043,0.7526,3342.9,3341.6,0.237]
[1736954005351,0.7526,3342.9,3341.8,2.99239]
[1736954005554,2.99161,3342.7,3341.6,3.22954]
[1736954005766,2.99169,3342.6,3341.6,0.237]
[1736954005965,0.374429,3342.6,3341.6,0.237]
[1736954006180,2.99176,3342.6,3341.6,0.237]
[1736954006379,2.99208,3342.2,3341.6,0.237]
[1736954006579,3.0,3342.3,3341.6,0.237]
[1736954006781,0.7526,3342.9,3341.6,0.237]
[1736954006944,2.99159,3342.7,3341.6,3.22954]
[1736954007145,0.55,3342.8,3341.6,0.237]
[1736954007344,2.99186,3342.4,3341.6,0.237]
[1736954007764,0.8726169,3342.7,3341.6,0.237]
[1736954008171,0.8726169,3342.7,3341.7,2.99244]
[1736954008348,3.0,3342.7,3341.8,2.99238]
[1736954008553,3.7526,3342.9,3342.0,2.99221]
[1736954009079,0.7526,3342.9,3342.1,2.99212]
[1736954009279,0.7526,3342.9,3341.6,3.22951]
[1736954009280,0.7526,3343.3,3341.8,8.87]
[1736954009582,0.7526,3343.7,3342.4,2.99179]
[1736954009749,1.80849928,3343.7,3342.4,2.99179]
[1736954009954,3.0,3343.4,3342.4,2.99179]
[1736954010470,0.7526,3343.7,3342.4,8.87]
[1736954010647,0.7526,3343.7,3342.5,0.8031]
[1736954011069,3.81591276,3344.0,3342.5,0.8031]
[1736954011268,3.74297,3344.1,3342.9,2.99135]
[1736954011469,3.0,3344.0,3343.0,0.236]
[1736954011784,2.9905,3344.0,3343.0,0.236]
[1736954012486,1.34705375,3344.1,3343.0,0.236]
[1736954012654,0.73372738,3344.0,3343.0,0.236]
[1736954012855,2.99043,3344.0,3343.0,0.236]
[1736954013191,0.7526,3344.5,3343.1,0.83300969]
[1736954013389,2.99009,3344.4,3343.3,2.99103]
[1736954013552,3.0,3344.1,3343.1,0.8031]
[1736954013753,3.0,3343.9,3343.1,0.8031]
[1736954013953,3.55,3344.2,3343.1,0.8031]
[1736954014149,3.55,3344.2,3343.2,0.236]
[1736954014150,3.80501,3343.7,3343.2,0.236]
[1736954014391,3.80468,3344.1,3343.2,0.236]
[1736954014591,2.99081,3343.6,3343.2,0.236]
[1736954014774,0.299081,3343.5,3342.7,6.2097]
[1736954014976,5.99065,3343.8,3342.8,0.236]
[1736954015176,0.55,3343.3,3342.3,0.8297]
[1736954015374,0.55,3343.3,3342.4,0.236]
[1736954015573,0.55,3343.3,3342.5,0.236]
[1736954015777,0.55,3343.3,3342.2,2.99202]
[1736954015975,2.99121,3343.2,3342.3,0.236]
[1736954016181,3.0,3343.4,3342.3,0.236]
[1736954016364,0.8143,3343.7,3342.4,0.8297]
[1736954016572,0.61032582,3344.1,3342.6,0.8297]
[1736954016775,0.61032582,3344.1,3342.8,8.87]
[1736954016958,2.98986,3344.7,3343.6,0.8297]
[1736954017178,2.98986,3344.7,3343.7,0.236]
[1736954017385,3.50706246,3344.6,3343.7,0.236]
[1736954017573,4.10229484,3344.2,3343.7,0.236]
[1736954018210,2.99034,3344.1,3343.7,0.236]
[1736954018411,5.9906,3343.8,3343.7,0.236]
[1736954018616,3.0,3343.8,3343.7,0.236]
[1736954019199,5.9906,3343.8,3343.7,0.236]
[1736954019401,3.80488,3343.9,3343.7,0.236]
[1736954019612,0.8143,3343.9,3343.7,0.236]
[1736954019924,2.99035,3344.1,3343.7,0.236]
[1736954020283,0.59523238,3344.2,3343.7,0.236]
[1736954020723,0.59523238,3344.2,3343.8,0.8297]
[1736954021023,3.80411,3344.7,3343.8,0.8297]
[1736954021882,2.98966,3344.9,3343.8,3.8203]
[1736954022230,0.8238,3345.1,3344.0,2.99043]
[1736954022382,2.98955,3345.0,3343.8,6.2097]
[1736954022716,2.98955,3345.0,3344.1,35.0]
[1736954022933,2.9899,3344.6,3344.1,35.0]
[1736954023133,2.99008,3344.4,3343.8,6.2097]
[1736954023336,2.99016,3344.3,3344.2,0.236]
[1736954023703,3.0,3344.6,3344.0,0.236]
[1736954023902,2.99014,3344.4,3344.0,0.236]
[1736954024408,2.9899,3344.6,3344.0,0.236]
[1736954024630,0.59303129,3344.7,3344.0,0.236]
[1736954025144,0.59303129,3344.7,3344.1,0.7815]
[1736954025507,2.98999,3344.5,3344.2,0.236]
[1736954026145,0.59303129,3344.7,3344.2,0.236]
[1736954026439,2.99016,3344.3,3344.2,0.236]
[1736954027504,0.59303129,3344.7,3344.2,0.236]
[1736954027728,2.9899,3344.6,3344.2,0.236]
[1736954028109,2.98999,3344.5,3344.2,0.236]
[1736954028608,0.59303129,3344.7,3344.2,0.236]
[1736954028847,2.99001,3344.5,3344.2,0.236]
[1736954029964,2.99041,3344.1,3344.0,0.236]
[1736954030166,3.77382,3344.5,3344.0,0.236]
[1736954030373,0.7838,3344.5,3344.0,0.236]
[1736954030664,2.99034,3344.1,3344.0,0.236]
[1736954030845,3.8139255,3344.4,3344.0,0.236]
[1736954031171,2.9903,3344.2,3344.0,0.236]
[1736954031315,3.0,3344.3,3344.0,0.236]
[1736954031512,2.99034,3344.1,3344.0,0.236]
[1736954032819,5.99034,3344.1,3344.0,0.236]
[1736954033284,5.741,3343.8,3343.7,0.6234]
[1736954033487,3.77449,3343.7,3343.2,0.236]
[1736954033781,3.873143,3343.8,3342.3,2.99191]
[1736954033782,2.99184,3342.5,3342.3,0.236]
[1736954034086,2.99162,3342.7,3342.3,0.236]
[1736954034387,2.99186,3342.4,3342.3,0.236]
[1736954036287,2.99202,3342.3,3341.6,0.7823]
[1736954036436,2.99202,3342.3,3342.2,0.236]
[1736954036848,2.99208,3342.2,3341.6,0.7823]
[1736954037185,3.59417704,3342.6,3342.1,0.236]
[1736954037359,2.99194,3342.4,3342.1,0.236]
[1736954037687,0.60243704,3342.6,3342.3,2.9919]
[1736954037893,2.99106,3343.3,3342.3,2.9919]
[1736954038197,3.58463503,3343.3,3342.3,2.9919]
[1736954038404,3.58463503,3343.3,3342.4,35.0]
[1736954040047,0.59357503,3343.3,3342.4,37.99181]
[1736954040252,0.59357503,3343.3,3342.4,43.87]
[1736954040687,2.99127,3343.1,3342.4,43.87]
[1736954040887,0.3584845,3343.1,3342.4,8.87]
[1736954041200,2.99177,3342.5,3342.3,0.236]
[1736954041406,2.99177,3342.5,3342.4,0.236]
[1736954042004,2.99203,3342.3,3342.2,0.236]
[1736954042183,2.99203,3342.3,3340.5,0.14702846]
[1736954042184,0.55,3342.1,3341.1,0.7823]
[1736954042364,0.55,3342.1,3340.5,8.87]
[1736954042365,2.99302,3341.1,3340.6,0.7823]
[1736954042566,3.51080837,3341.0,3340.8,0.236]
[1736954042883,3.51080837,3341.0,3340.4,5.38]
[1736954042884,2.9932,3340.9,3340.6,0.236]
[1736954043686,0.7838,3341.2,3340.4,5.38]
[1736954043882,3.0,3341.0,3340.5,0.236]
[1736954044110,5.9895504,3341.0,3340.5,0.236]
[1736954044313,5.9895504,3341.0,3340.6,0.236]
[1736954044314,2.9934,3340.7,3340.6,0.236]
[1736954044775,0.55,3340.9,3340.5,0.236]
[1736954044977,3.54323,3340.9,3340.5,0.236]
[1736954045178,2.99332,3340.8,3340.5,0.236]
[1736954045510,1.39472659,3341.2,3340.5,0.236]
[1736954045802,1.39472659,3341.2,3340.2,0.7823]
[1736954046005,1.39472659,3341.2,3340.6,0.236]
[1736954046207,0.61092659,3341.2,3340.6,0.236]
[1736954046392,2.99242,3341.8,3340.6,0.236]
[1736954046570,3.0,3341.5,3340.6,0.236]
[1736954046771,3.55,3341.9,3340.7,35.0]
[1736954046970,3.0,3341.7,3340.8,0.7763]
[1736954047176,2.99206,3342.2,3341.1,2.993]
[1736954047484,0.7658,3342.4,3341.0,0.7763]
[1736954047686,0.60969834,3341.9,3341.3,2.99281]
[1736954048211,0.60969834,3341.9,3341.0,3.76934]
[1736954048510,3.55,3341.4,3340.5,0.7763]
[1736954048683,3.55,3341.4,3338.8,1.377603]
[1736954048684,3.0,3340.7,3339.7,0.7763]
[1736954048883,2.99434,3339.7,3339.4,9.48065727]
[1736954049210,2.99401,3340.0,3339.4,0.61065727]
[1736954049575,0.55,3340.3,3339.3,6.3923]
[1736954049774,2.99402,3340.0,3339.4,0.236]
[1736954050477,0.61395359,3340.2,3339.4,0.236]
[1736954050707,2.99408,3340.0,3339.4,0.236]
[1736954050909,5.99368,3340.4,3339.4,0.236]
[1736954051210,2.99375,3340.3,3339.5,8.87]
[1736954051823,2.99376,3340.3,3339.5,8.87]
[1736954052029,0.59159858,3340.3,3339.5,8.87]
[1736954052326,1.4093774,3340.3,3339.4,0.236]
[1736954052943,2.99417,3339.9,3339.4,0.236]
[1736954053248,4.4031674,3340.3,3339.4,0.236]
[1736954053249,3.82038962,3340.0,3339.4,0.236]
[1736954053404,2.99446,3339.5,3339.4,0.1302]
[1736954053784,2.99446,3339.5,3339.2,0.236]
[1736954054308,3.0,3339.6,3339.2,0.236]
[1736954054508,0.81777882,3340.3,3339.2,0.236]
[1736954054708,0.61183381,3339.6,3339.2,0.236]
[1736954054914,0.61183381,3339.6,3339.3,0.02994459]
[1736954055137,0.61183381,3339.6,3339.3,3.02455459]
[1736954055317,2.99366,3340.4,3339.4,2.99453]
[1736954055627,0.61063485,3340.0,3339.5,2.99438]
[1736954055933,0.61063485,3340.0,3339.6,0.7763]
[1736954056232,0.61063485,3340.0,3339.8,2.99418]
[1736954056429,0.61063485,3340.0,3339.7,8.87]
[1736954056952,0.7658,3341.1,3339.8,11.86411]
[1736954057159,0.59055212,3340.2,3339.9,8.89993798]
[1736954057435,2.99294,3341.2,3340.2,8.87]
[1736954057608,0.7658,3341.5,3340.5,2.99355]
[1736954057818,0.7658,3341.5,3340.3,9.8823]
[1736954057819,2.99279,3341.4,3340.6,9.106]
[1736954058020,0.59804567,3341.0,3340.7,8.87]
[1736954059412,0.59804567,3341.0,3339.8,2.99416]
[1736954059413,0.55,3340.9,3339.8,0.7763]
[1736954059709,2.99355,3340.6,3339.9,0.236]
[1736954059909,1.36384567,3341.0,3340.1,2.99391]
[1736954060139,2.99304,3341.1,3339.8,0.7763]
[1736954060300,0.7658,3341.5,3339.8,0.7763]
[1736954060301,3.7658,3341.5,3340.2,0.236]
[1736954060497,0.58524073,3341.2,3340.2,0.236]
[1736954060698,0.58524073,3341.2,3340.5,2.99348]
[1736954060900,0.58524073,3341.2,3340.6,9.6463]
[1736954061421,0.58524073,3341.2,3340.6,9.2463]
[1736954061804,0.7658,3341.5,3340.6,12.23975]
[1736954062004,0.36018383,3341.9,3340.8,11.86327]
[1736954062005,0.6060951,3341.6,3340.8,11.86327]
[1736954062266,7.57820962,3342.3,3341.1,8.87]
[1736954062403,0.59069403,3341.8,3341.3,2.99276]
[1736954062608,0.7658,3342.3,3341.4,0.236]
[1736954063110,2.9925,3341.7,3341.4,0.236]
[1736954063308,3.57717117,3342.0,3341.4,0.236]
[1736954063532,2.99254,3341.7,3341.4,0.236]
[1736954063840,2.99254,3341.7,3341.1,8.87]
[1736954063841,2.99273,3341.5,3341.1,8.87]
[1736954064251,2.99265,3341.6,3341.1,8.87]
[1736954064451,0.65771712,3341.9,3341.1,8.87]
[1736954064452,3.65006712,3341.9,3341.1,8.87]
[1736954064659,3.65006712,3341.9,3340.9,0.236]
[1736954064660,0.7658,3341.4,3340.6,0.4372]
[1736954064837,2.99304,3341.1,3340.6,0.235]
[1736954065206,2.99321,3340.9,3340.6,0.235]
[1736954065565,2.99319,3341.0,3340.6,0.235]
[1736954065840,2.9932,3340.9,3340.6,0.235]
[1736954066053,3.29263,3340.8,3340.6,0.235]
[1736954066212,2.99338,3340.7,3340.6,0.235]
[1736954066397,0.29932,3340.8,3340.0,9.105]
[1736954066596,0.29932,3340.8,3338.6,5.30766484]
[1736954066597,1.3158,3341.1,3339.5,8.87]
[1736954066818,2.99332,3340.8,3339.6,0.235]
[1736954067156,0.7658,3341.1,3339.6,0.235]
[1736954067357,0.55,3341.0,3339.7,0.235]
[1736954067563,2.9932,3340.9,3339.7,0.235]
[1736954067729,0.9809,3340.8,3339.7,0.235]
[1736954068061,0.7658,3341.1,3339.7,0.235]
[1736954068353,0.7658,3341.1,3339.6,8.87]
[1736954068354,2.99398,3340.1,3339.6,8.87]
[1736954068554,2.69008,3340.1,3339.6,8.87]
[1736954068758,2.99384,3340.2,3339.6,8.87]
[1736954069142,0.7658,3341.1,3339.6,8.87]